fUST/lending_fUST_20250921
["ID","MTS","AMOUNT","RATE_DAILY","PERIOD"]
[386720301,1758468644738,-480.0,0.00019726,2]
[386720302,1758468644748,-480.0,0.00019726,2]
[386720303,1758468644758,-480.0,0.00019726,2]
[386720304,1758468644768,-480.0,0.00019726,2]
[386720305,1758468644777,-480.0,0.00019726,2]
[386720306,1758468644786,-480.0,0.00019726,2]
[386720308,1758468644795,-480.0,0.00019726,2]
[386720309,1758468644804,-480.0,0.00019726,2]
[386720311,1758468644813,-480.0,0.00019726,2]
[386720313,1758468644823,-480.0,0.00019726,2]
[386720315,1758468644832,-454.71229305,0.00019726,2]
[386720317,1758468644841,-480.0,0.00019726,2]
[386720319,1758468644850,-480.0,0.00019726,2]
[386720321,1758468644860,-480.0,0.00019726,2]
[386720323,1758468644870,-515.02431158,0.00019726,2]
[386720325,1758468644879,-480.0,0.00019726,2]
[386720327,1758468644889,-480.0,0.00019726,2]
[386720329,1758468644898,-480.0,0.00019726,2]
[386720331,1758468644907,-480.0,0.00019726,2]
[386720333,1758468644917,-480.0,0.00019726,2]
[386720335,1758468644928,-480.0,0.00019726,2]
[386720337,1758468644938,-176.01492138,0.00019726,2]
[386720339,1758468644947,-480.0,0.00019726,2]
[386720341,1758468644956,-480.0,0.00019726,2]
[386720343,1758468644965,-480.0,0.00019726,2]
[386720345,1758468644974,-480.0,0.00019726,2]
[386720347,1758468644983,-480.0,0.00019726,2]
[386720349,1758468644993,-480.0,0.00019726,2]
[386720351,1758468645001,-480.0,0.00019726,2]
[386720352,1758468645011,-480.0,0.00019726,2]
[386720354,1758468645020,-480.0,0.00019726,2]
[386720356,1758468645029,-480.0,0.00019726,2]
[386720358,1758468645039,-480.0,0.00019726,2]
[386720360,1758468645048,-480.0,0.00019726,2]
[386720362,1758468645057,-480.0,0.00019726,2]
[386720364,1758468645066,-480.0,0.00019726,2]
[386720366,1758468645076,-480.0,0.00019726,2]
[386720368,1758468645086,-480.0,0.00019726,2]
[386720371,1758468645096,-480.0,0.00019726,2]
[386720373,1758468645105,-480.0,0.00019726,2]
[386720374,1758468645115,-480.0,0.00019726,2]
[386720377,1758468645125,-480.0,0.00019726,2]
[386720378,1758468645134,-480.0,0.00019726,2]
[386720380,1758468645144,-480.0,0.00019726,2]
[386720382,1758468645154,-480.0,0.00019726,2]
[386720385,1758468645164,-480.0,0.00019726,2]
[386720387,1758468645173,-480.0,0.00019726,2]
[386720389,1758468645183,-300.87610655,0.00019726,2]
[386720390,1758468645192,-480.0,0.00019726,2]
[386720393,1758468645202,-640.54,0.00019726,2]
[386720395,1758468645211,-480.0,0.00019726,2]
[386720396,1758468645221,-480.0,0.00019726,2]
[386720398,1758468645230,-480.0,0.00019726,2]
[386720401,1758468645240,-480.0,0.00019726,2]
[386720403,1758468645249,-480.0,0.00019726,2]
[386720405,1758468645259,-480.0,0.00019726,2]
[386720406,1758468645268,-480.0,0.00019726,2]
[386720408,1758468645277,-480.0,0.00019726,2]
[386720410,1758468645286,-480.0,0.00019726,2]
[386720412,1758468645296,-673.0,0.00019726,2]
[386720414,1758468645305,-509.80161875,0.00019726,2]
[386720416,1758468645315,-480.0,0.00019726,2]
[386720418,1758468645325,-9615.76,0.00019726,2]
[386720420,1758468645336,-480.0,0.00019726,2]
[386720423,1758468645345,-1515.31,0.00019726,2]
[386720424,1758468645355,-480.0,0.00019726,2]
[386720426,1758468645365,-418.85923538,0.00019726,2]
[386720428,1758468645375,-480.0,0.00019726,2]
[386720430,1758468645384,-480.0,0.00019726,2]
[386720432,1758468645394,-480.0,0.00019726,2]
[386720434,1758468645404,-480.0,0.00019726,2]
[386720436,1758468645414,-480.0,0.00019726,2]
[386720439,1758468645426,-480.0,0.00019726,2]
[386720441,1758468645435,-480.0,0.00019726,2]
[386720442,1758468645445,-480.0,0.00019726,2]
[386720444,1758468645454,-965.03,0.00019726,2]
[386720446,1758468645464,-2176.89,0.00019726,2]
[386720448,1758468645472,-492.01912991,0.00019726,2]
[386720450,1758468645482,-480.0,0.00019726,2]
[386720452,1758468645491,-742.03,0.00019726,2]
[386720454,1758468645500,-480.0,0.00019726,2]
[386720456,1758468645510,-480.0,0.00019726,2]
[386720459,1758468645520,-480.0,0.00019726,2]
[386720461,1758468645529,-607.06,0.00019726,2]
[386720462,1758468645538,-1156.58,0.00019726,2]
[386720464,1758468645548,-480.0,0.00019726,2]
[386720467,1758468645558,-480.0,0.00019726,2]
[386720469,1758468645567,-1027.74,0.00019726,2]
[386720471,1758468645576,-480.0,0.00019726,2]
[386720472,1758468645585,-480.0,0.00019726,2]
[386720475,1758468645595,-480.0,0.00019726,2]
[386720477,1758468645605,-480.0,0.00019726,2]
[386720479,1758468645614,-480.0,0.00019726,2]
[386720480,1758468645623,-657.33,0.00019726,2]
[386720482,1758468645632,-480.0,0.00019726,2]
[386720484,1758468645643,-973.29,0.00019726,2]
[386720486,1758468645653,-480.0,0.00019726,2]
[386720489,1758468645662,-520.27590122,0.00019726,2]
[386720491,1758468645672,-480.0,0.00019726,2]
[386720493,1758468645681,-480.0,0.00019726,2]
[386720495,1758468645691,-480.0,0.00019726,2]
[386720497,1758468645700,-480.0,0.00019726,2]
[386720499,1758468645709,-480.0,0.00019726,2]
[386720501,1758468645718,-480.0,0.00019726,2]
[386720503,1758468645728,-480.0,0.00019726,2]
[386720504,1758468645736,-480.0,0.00019726,2]
[386720506,1758468645744,-480.0,0.00019726,2]
[386720508,1758468645754,-480.0,0.00019726,2]
[386720510,1758468645763,-4283.87,0.00019726,2]
[386720512,1758468645773,-480.0,0.00019726,2]
[386720514,1758468645781,-1911.88,0.00019726,2]
[386720516,1758468645791,-480.0,0.00019726,2]
[386720518,1758468645800,-480.0,0.00019726,2]
[386720520,1758468645810,-480.0,0.00019726,2]
[386720522,1758468645819,-818.13,0.00019726,2]
[386720524,1758468645828,-480.0,0.00019726,2]
[386720526,1758468645838,-480.0,0.00019726,2]
[386720528,1758468645849,-866.46,0.00019726,2]
[386720530,1758468645858,-1028.53,0.00019726,2]
[386720532,1758468645868,-480.0,0.00019726,2]
[386720534,1758468645879,-480.0,0.00019726,2]
[386720537,1758468645889,-480.0,0.00019726,2]
[386720538,1758468645898,-1578.11,0.00019726,2]
[386720541,1758468645908,-480.0,0.00019726,2]
[386720543,1758468645917,-480.0,0.00019726,2]
[386720544,1758468645927,-480.0,0.00019726,2]
[386720547,1758468645936,-2388.08,0.00019726,2]
[386720549,1758468645947,-2224.81,0.00019726,2]
[386720551,1758468645956,-480.0,0.00019726,2]
[386720553,1758468645965,-480.0,0.00019726,2]
[386720555,1758468645975,-856.41,0.00019726,2]
[386720557,1758468645984,-740.82,0.00019726,2]
[386720559,1758468645993,-480.0,0.00019726,2]
[386720561,1758468646002,-480.0,0.00019726,2]
[386720563,1758468646012,-480.0,0.00019726,2]
[386720565,1758468646022,-480.0,0.00019726,2]
[386720566,1758468646032,-480.0,0.00019726,2]
[386720568,1758468646041,-500.0,0.00019726,2]
[386720570,1758468646050,-404.343,0.00019748,2]
[386720572,1758468646059,-196.75114014,0.00019758,2]
[386720574,1758468646069,-10613.16327788,0.000199,2]
[386720576,1758468646078,-480.0,0.00019999,2]
[386720585,1758468646117,-676.7,0.00019999,2]
[386720588,1758468646127,-480.0,0.0002,2]
[386720589,1758468646136,-480.0,0.0002,2]
[386720591,1758468646146,-480.0,0.0002,2]
[386720594,1758468646155,-480.0,0.0002,2]
[386720596,1758468646165,-480.0,0.0002,2]
[386720598,1758468646174,-253.46772913,0.0002,2]
[386720600,1758468646183,-480.0,0.0002,2]
[386720602,1758468646193,-480.0,0.0002,2]
[386720604,1758468646202,-480.0,0.0002,2]
[386720606,1758468646214,-480.0,0.0002,2]
[386720608,1758468646223,-480.0,0.0002,2]
[386720610,1758468646232,-480.0,0.0002,2]
[386720612,1758468646241,-480.0,0.0002,2]
[386720614,1758468646251,-480.0,0.0002,2]
[386720616,1758468646261,-480.0,0.0002,2]
[386720618,1758468646270,-480.0,0.0002,2]
[386720620,1758468646279,-480.0,0.0002,2]
[386720622,1758468646288,-285.24878257,0.0002,2]
[386720624,1758468646298,-480.0,0.0002,2]
[386720626,1758468646307,-480.0,0.0002,2]
[386720628,1758468646316,-480.0,0.0002,2]
[386720630,1758468646327,-480.0,0.0002,2]
[386720632,1758468646336,-480.0,0.0002,2]
[386720634,1758468646346,-480.0,0.0002,2]
[386720636,1758468646355,-480.0,0.0002,2]
[386720638,1758468646364,-480.0,0.0002,2]
[386720640,1758468646374,-480.0,0.0002,2]
[386720642,1758468646383,-480.0,0.0002,2]
[386720644,1758468646393,-480.0,0.0002,2]
[386720646,1758468646402,-480.0,0.0002,2]
[386720648,1758468646412,-480.0,0.0002,2]
[386720650,1758468646422,-480.0,0.0002,2]
[386720652,1758468646435,-480.0,0.0002,2]
[386720654,1758468646444,-480.0,0.0002,2]
[386720656,1758468646453,-480.0,0.0002,2]
[386720658,1758468646463,-480.0,0.0002,2]
[386720660,1758468646473,-480.0,0.0002,2]
[386720662,1758468646482,-480.0,0.0002,2]
[386720664,1758468646491,-480.0,0.0002,2]
[386720666,1758468646500,-480.0,0.0002,2]
[386720667,1758468646509,-480.0,0.0002,2]
[386720669,1758468646518,-480.0,0.0002,2]
[386720671,1758468646527,-480.0,0.0002,2]
[386720673,1758468646536,-480.0,0.0002,2]
[386720675,1758468646545,-480.0,0.0002,2]
[386720677,1758468646555,-480.0,0.0002,2]
[386720679,1758468646565,-640.54,0.0002,2]
[386720681,1758468646574,-480.0,0.0002,2]
[386720683,1758468646584,-480.0,0.0002,2]
[386720685,1758468646593,-480.0,0.0002,2]
[386720687,1758468646602,-480.0,0.0002,2]
[386720689,1758468646611,-480.0,0.0002,2]
[386720691,1758468646620,-237.12204867,0.0002,2]
[386720693,1758468646629,-480.0,0.0002,2]
[386720695,1758468646639,-480.0,0.0002,2]
[386720697,1758468646648,-673.0,0.0002,2]
[386720699,1758468646657,-571.271383,0.0002,2]
[386720701,1758468646666,-9615.76,0.0002,2]
[386720703,1758468646675,-216.85,0.0002,2]
[386720705,1758468646685,-202.69041157,0.0002,2]
[386720707,1758468646695,-1515.31,0.0002,2]
[386720709,1758468646704,-170.75667848,0.0002,2]
[386720711,1758468646713,-480.0,0.0002,2]
[386720713,1758468646722,-480.0,0.0002,2]
[386720715,1758468646731,-480.0,0.0002,2]
[386720717,1758468646740,-480.0,0.0002,2]
[386720719,1758468646749,-480.0,0.0002,2]
[386720721,1758468646759,-480.0,0.0002,2]
[386720723,1758468646770,-480.0,0.0002,2]
[386720725,1758468646780,-480.0,0.0002,2]
[386720727,1758468646790,-965.03,0.0002,2]
[386720729,1758468646801,-2176.89,0.0002,2]
[386720731,1758468646811,-480.0,0.0002,2]
[386720733,1758468646823,-742.03,0.0002,2]
[386720735,1758468646833,-480.0,0.0002,2]
[386720737,1758468646845,-480.0,0.0002,2]
[386720739,1758468646858,-480.0,0.0002,2]
[386720741,1758468646868,-607.06,0.0002,2]
[386720743,1758468646878,-1156.58,0.0002,2]
[386720745,1758468646887,-480.0,0.0002,2]
[386720747,1758468646897,-480.0,0.0002,2]
[386720749,1758468646906,-1027.74,0.0002,2]
[386720751,1758468646916,-480.0,0.0002,2]
[386720753,1758468646925,-480.0,0.0002,2]
[386720755,1758468646934,-480.0,0.0002,2]
[386720757,1758468646943,-480.0,0.0002,2]
[386720759,1758468646952,-480.0,0.0002,2]
[386720761,1758468646962,-657.33,0.0002,2]
[386720763,1758468646971,-480.0,0.0002,2]
[386720765,1758468646980,-973.29,0.0002,2]
[386720767,1758468646989,-480.0,0.0002,2]
[386720769,1758468646999,-480.0,0.0002,2]
[386720771,1758468647008,-223.08,0.0002,2]
[386720773,1758468647016,-480.0,0.0002,2]
[386720775,1758468647026,-480.0,0.0002,2]
[386720777,1758468647035,-480.0,0.0002,2]
[386720779,1758468647044,-480.0,0.0002,2]
[386720781,1758468647054,-480.0,0.0002,2]
[386720783,1758468647063,-480.0,0.0002,2]
[386720785,1758468647072,-480.0,0.0002,2]
[386720787,1758468647081,-480.0,0.0002,2]
[386720789,1758468647091,-4283.87,0.0002,2]
[386720791,1758468647100,-480.0,0.0002,2]
[386720793,1758468647109,-1911.88,0.0002,2]
[386720795,1758468647119,-480.0,0.0002,2]
[386720797,1758468647128,-480.0,0.0002,2]
[386720799,1758468647138,-818.13,0.0002,2]
[386720801,1758468647148,-866.46,0.0002,2]
[386720803,1758468647157,-1028.53,0.0002,2]
[386720805,1758468647167,-458.84,0.0002,2]
[386720807,1758468647176,-480.0,0.0002,2]
[386720809,1758468647186,-480.0,0.0002,2]
[386720811,1758468647195,-1578.11,0.0002,2]
[386720813,1758468647205,-480.0,0.0002,2]
[386720815,1758468647214,-480.0,0.0002,2]
[386720816,1758468647223,-480.0,0.0002,2]
[386720817,1758468647233,-2388.08,0.0002,2]
[386720818,1758468647242,-2224.81,0.0002,2]
[386720819,1758468647251,-480.0,0.0002,2]
[386720820,1758468647261,-480.0,0.0002,2]
[386720821,1758468647270,-856.41,0.0002,2]
[386720822,1758468647280,-740.82,0.0002,2]
[386720823,1758468647289,-480.0,0.0002,2]
[386720825,1758468647299,-480.0,0.0002,2]
[386720827,1758468647309,-195.43658433,0.0002,2]
[386720829,1758468647319,-3414.95,0.00020015,2]
[386720831,1758468647328,-1000.0,0.00020021,2]
[386720833,1758468647338,-1000.0,0.00020021,2]
[386720835,1758468647347,-1000.0,0.00020021,2]
[386720837,1758468647357,-511.0021489,0.00020021,2]
[386720839,1758468647367,-343.0,0.00020053,2]
[386720841,1758468647377,-855.07392698,0.000201,2]
[386720843,1758468647386,-417.15472785,0.00020112,2]
[386720845,1758468647396,-160.0,0.00020112,2]
[386720847,1758468647406,-160.0,0.00020112,2]
[386720849,1758468647415,-160.0,0.00020112,2]
[386720851,1758468647429,-233.52200025,0.00020112,2]
[386720853,1758468647440,-160.0,0.00020112,2]
[386720855,1758468647450,-160.0,0.00020112,2]
[386720857,1758468647459,-848.42763433,0.00020112,2]
[386720860,1758468647469,-404.62448614,0.00020124,2]
[386720861,1758468647478,-1500.0,0.00020268,2]
[386720864,1758468647487,-1500.0,0.00020268,2]
[386720866,1758468647497,-1549.55733084,0.00020268,2]
[386720868,1758468647506,-677.74034965,0.00020268,2]
[386720870,1758468647517,-1500.0,0.00020268,2]
[386720872,1758468647526,-480.0,0.00020273,2]
[386720874,1758468647536,-480.0,0.00020273,2]
[386720876,1758468647546,-480.0,0.00020273,2]
[386720878,1758468647555,-480.0,0.00020273,2]
[386720880,1758468647565,-316.79536455,0.00020273,2]
[386720882,1758468647574,-480.0,0.00020273,2]
[386720884,1758468647584,-480.0,0.00020273,2]
[386720886,1758468647593,-480.0,0.00020273,2]
[386720888,1758468647603,-402.21779819,0.00020273,2]
[386720890,1758468647612,-480.0,0.00020273,2]
[386720892,1758468647621,-480.0,0.00020273,2]
[386720894,1758468647631,-480.0,0.00020273,2]
[386720896,1758468647640,-480.0,0.00020273,2]
[386720898,1758468647650,-480.0,0.00020273,2]
[386720900,1758468647659,-480.0,0.00020273,2]
[386720902,1758468647669,-480.0,0.00020273,2]
[386720904,1758468647679,-480.0,0.00020273,2]
[386720906,1758468647688,-480.0,0.00020273,2]
[386720908,1758468647697,-480.0,0.00020273,2]
[386720910,1758468647707,-480.0,0.00020273,2]
[386720912,1758468647717,-494.57325951,0.00020273,2]
[386720914,1758468647728,-256.5416246,0.00020273,2]
[386720916,1758468647737,-480.0,0.00020273,2]
[386720918,1758468647747,-480.0,0.00020273,2]
[386720921,1758468647756,-251.64496245,0.00020273,2]
[386720923,1758468647765,-480.0,0.00020273,2]
[386720925,1758468647774,-480.0,0.00020273,2]
[386720927,1758468647784,-480.0,0.00020273,2]
[386720929,1758468647793,-480.0,0.00020273,2]
[386720931,1758468647803,-480.0,0.00020273,2]
[386720933,1758468647812,-480.0,0.00020273,2]
[386720935,1758468647821,-480.0,0.00020273,2]
[386720937,1758468647831,-480.0,0.00020273,2]
[386720938,1758468647841,-480.0,0.00020273,2]
[386720941,1758468647850,-480.0,0.00020273,2]
[386720943,1758468647860,-486.14070453,0.00020273,2]
[386720945,1758468647869,-480.0,0.00020273,2]
[386720947,1758468647878,-480.0,0.00020273,2]
[386720949,1758468647888,-480.0,0.00020273,2]
[386720951,1758468647897,-480.0,0.00020273,2]
[386720953,1758468647906,-640.54,0.00020273,2]
[386720955,1758468647915,-480.0,0.00020273,2]
[386720957,1758468647925,-480.0,0.00020273,2]
[386720959,1758468647936,-480.0,0.00020273,2]
[386720961,1758468647945,-480.0,0.00020273,2]
[386720963,1758468647955,-480.0,0.00020273,2]
[386720965,1758468647964,-480.0,0.00020273,2]
[386720967,1758468647974,-673.0,0.00020273,2]
[386720969,1758468647984,-480.0,0.00020273,2]
[386720971,1758468647993,-9615.76,0.00020273,2]
[386720973,1758468648003,-1515.31,0.00020273,2]
[386720975,1758468648012,-480.0,0.00020273,2]
[386720977,1758468648022,-480.0,0.00020273,2]
[386720979,1758468648032,-480.0,0.00020273,2]
[386720981,1758468648042,-480.0,0.00020273,2]
[386720983,1758468648051,-965.03,0.00020273,2]
[386720985,1758468648061,-2176.89,0.00020273,2]
[386720987,1758468648071,-742.03,0.00020273,2]
[386720989,1758468648080,-480.0,0.00020273,2]
[386720991,1758468648090,-421.21,0.00020273,2]
[386720993,1758468648099,-607.06,0.00020273,2]
[386720995,1758468648108,-1156.58,0.00020273,2]
[386720997,1758468648118,-480.0,0.00020273,2]
[386720999,1758468648128,-480.0,0.00020273,2]
[386721001,1758468648138,-676.7,0.00020273,2]
[386721003,1758468648147,-1027.74,0.00020273,2]
[386721005,1758468648157,-480.0,0.00020273,2]
[386721007,1758468648167,-480.0,0.00020273,2]
[386721009,1758468648178,-657.33,0.00020273,2]
[386721012,1758468648187,-973.29,0.00020273,2]
[386721014,1758468648197,-483.95768345,0.00020273,2]
[386721016,1758468648207,-480.0,0.00020273,2]
[386721018,1758468648217,-480.0,0.00020273,2]
[386721020,1758468648226,-480.0,0.00020273,2]
[386721022,1758468648236,-480.0,0.00020273,2]
[386721024,1758468648245,-480.0,0.00020273,2]
[386721026,1758468648255,-480.0,0.00020273,2]
[386721028,1758468648265,-480.0,0.00020273,2]
[386721030,1758468648274,-480.0,0.00020273,2]
[386721032,1758468648284,-4283.87,0.00020273,2]
[386721034,1758468648294,-480.0,0.00020273,2]
[386721036,1758468648303,-480.0,0.00020273,2]
[386721037,1758468648313,-1911.88,0.00020273,2]
[386721040,1758468648322,-480.0,0.00020273,2]
[386721042,1758468648333,-818.13,0.00020273,2]
[386721044,1758468648343,-866.46,0.00020273,2]
[386721046,1758468648352,-1028.53,0.00020273,2]
[386721048,1758468648362,-480.0,0.00020273,2]
[386721050,1758468648372,-480.0,0.00020273,2]
[386721052,1758468648382,-1578.11,0.00020273,2]
[386721054,1758468648392,-480.0,0.00020273,2]
[386721056,1758468648401,-480.0,0.00020273,2]
[386721058,1758468648411,-480.0,0.00020273,2]
[386721060,1758468648422,-2388.08,0.00020273,2]
[386721062,1758468648433,-2224.81,0.00020273,2]
[386721064,1758468648442,-480.0,0.00020273,2]
[386721066,1758468648451,-480.0,0.00020273,2]
[386721068,1758468648461,-856.41,0.00020273,2]
[386721070,1758468648471,-740.82,0.00020273,2]
[386721072,1758468648481,-480.0,0.00020273,2]
[386721074,1758468648490,-362.64251197,0.00020288,2]
[386721076,1758468648500,-855.07392698,0.000203,2]
[386721078,1758468648510,-196.75114014,0.00020438,2]
[386721080,1758468648519,-855.07392698,0.000205,2]
[386721082,1758468648528,-18978.82184113,0.000205,2]
[386721084,1758468648538,-461.46,0.00020538,3]
[386721086,1758468648548,-480.0,0.00020547,2]
[386721088,1758468648558,-509.00118506,0.00020547,2]
[386721090,1758468648567,-480.0,0.00020547,2]
[386721092,1758468648576,-480.0,0.00020547,2]
[386721094,1758468648586,-480.0,0.00020547,2]
[386721096,1758468648595,-480.0,0.00020547,2]
[386721098,1758468648605,-480.0,0.00020547,2]
[386721100,1758468648614,-480.0,0.00020547,2]
[386721102,1758468648624,-480.0,0.00020547,2]
[386721104,1758468648633,-480.0,0.00020547,2]
[386721106,1758468648643,-471.92570027,0.00020547,2]
[386721109,1758468648653,-480.0,0.00020547,2]
[386721111,1758468648662,-480.0,0.00020547,2]
[386721113,1758468648672,-480.0,0.00020547,2]
[386721115,1758468648681,-480.0,0.00020547,2]
[386721116,1758468648690,-480.0,0.00020547,2]
[386721119,1758468648700,-496.89196208,0.00020547,2]
[386721121,1758468648709,-480.0,0.00020547,2]
[386721123,1758468648719,-640.54,0.00020547,2]
[386721124,1758468648728,-480.0,0.00020547,2]
[386721127,1758468648738,-480.0,0.00020547,2]
[386721129,1758468648748,-480.0,0.00020547,2]
[386721131,1758468648757,-480.0,0.00020547,2]
[386721133,1758468648767,-480.0,0.00020547,2]
[386721135,1758468648777,-151.0,0.00020547,2]
[386721137,1758468648787,-480.0,0.00020547,2]
[386721139,1758468648798,-151.0,0.00020547,2]
[386721141,1758468648808,-673.0,0.00020547,2]
[386721143,1758468648818,-480.0,0.00020547,2]
[386721145,1758468648828,-9615.76,0.00020547,2]
[386721147,1758468648838,-1515.31,0.00020547,2]
[386721149,1758468648847,-480.0,0.00020547,2]
[386721151,1758468648857,-151.0,0.00020547,2]
[386721153,1758468648867,-480.0,0.00020547,2]
[386721155,1758468648877,-480.0,0.00020547,2]
[386721157,1758468648886,-151.0,0.00020547,2]
[386721159,1758468648896,-480.0,0.00020547,2]
[386721161,1758468648906,-965.03,0.00020547,2]
[386721163,1758468648915,-151.0,0.00020547,2]
[386721166,1758468648925,-2176.89,0.00020547,2]
[386721168,1758468648935,-742.03,0.00020547,2]
[386721170,1758468648945,-607.06,0.00020547,2]
[386721172,1758468648954,-1156.58,0.00020547,2]
[386721174,1758468648964,-480.0,0.00020547,2]
[386721176,1758468648974,-151.0,0.00020547,2]
[386721178,1758468648983,-676.7,0.00020547,2]
[386721180,1758468648993,-1027.74,0.00020547,2]
[386721182,1758468649002,-480.0,0.00020547,2]
[386721184,1758468649012,-480.0,0.00020547,2]
[386721186,1758468649022,-182.67349,0.00020547,2]
[386721188,1758468649032,-657.33,0.00020547,2]
[386721190,1758468649041,-151.0,0.00020547,2]
[386721192,1758468649051,-973.29,0.00020547,2]
[386721194,1758468649061,-182.67349,0.00020547,2]
[386721196,1758468649071,-182.67349,0.00020547,2]
[386721198,1758468649081,-480.0,0.00020547,2]
[386721200,1758468649091,-182.67349,0.00020547,2]
[386721202,1758468649101,-480.0,0.00020547,2]
[386721204,1758468649111,-480.0,0.00020547,2]
[386721206,1758468649122,-480.0,0.00020547,2]
[386721209,1758468649132,-480.0,0.00020547,2]
[386721210,1758468649142,-480.0,0.00020547,2]
[386721213,1758468649152,-480.0,0.00020547,2]
[386721215,1758468649162,-4283.87,0.00020547,2]
[386721217,1758468649172,-480.0,0.00020547,2]
[386721219,1758468649181,-1911.88,0.00020547,2]
[386721221,1758468649191,-818.13,0.00020547,2]
[386721223,1758468649201,-866.46,0.00020547,2]
[386721225,1758468649211,-1028.53,0.00020547,2]
[386721227,1758468649220,-151.0,0.00020547,2]
[386721229,1758468649230,-151.0,0.00020547,2]
[386721231,1758468649240,-151.0,0.00020547,2]
[386721233,1758468649250,-152.961762,0.00020547,2]
[386721235,1758468649259,-373.42625007,0.00020547,2]
[386721250,1758468649386,-480.0,0.00020547,2]
[386721252,1758468649396,-1578.11,0.00020547,2]
[386721254,1758468649406,-480.0,0.00020547,2]
[386721256,1758468649415,-480.0,0.00020547,2]
[386721258,1758468649428,-480.0,0.00020547,2]
[386721260,1758468649437,-2388.08,0.00020547,2]
[386721262,1758468649446,-2224.81,0.00020547,2]
[386721264,1758468649456,-480.0,0.00020547,2]
[386721266,1758468649465,-480.0,0.00020547,2]
[386721268,1758468649475,-856.41,0.00020547,2]
[386721270,1758468649484,-151.0,0.00020547,2]
[386721272,1758468649494,-151.0,0.00020547,2]
[386721274,1758468649503,-151.0,0.00020547,2]
[386721276,1758468649511,-151.0,0.00020547,2]
[386721278,1758468649521,-151.0,0.00020547,2]
[386721279,1758468649531,-740.82,0.00020547,2]
[386721281,1758468649540,-151.0,0.00020547,2]
[386721283,1758468649549,-151.0,0.00020547,2]
[386721285,1758468649559,-480.0,0.00020547,2]
[386721288,1758468649568,-197.721532,0.00020547,2]
[386721289,1758468649577,-151.0,0.00020547,2]
[386721291,1758468649587,-151.0,0.00020547,2]
[386721294,1758468649596,-151.0,0.00020547,2]
[386721296,1758468649605,-151.0,0.00020547,2]
[386721297,1758468649614,-152.598444,0.00020547,2]
[386721299,1758468649625,-152.820657,0.00020547,2]
[386721301,1758468649634,-1500.0,0.00020568,2]
[386721304,1758468649643,-281.69742881,0.00020568,2]
[386721305,1758468649653,-8911.37211635,0.00020611,2]
[386721307,1758468649662,-855.07392698,0.000207,2]
[386721310,1758468649672,-1300.0,0.00020712,2]